fUST/lending_fUST_20251023
["ID","MTS","AMOUNT","RATE_DAILY","PERIOD"]
[392146686,1761208523667,151.0,0.00036104,30]
[392146687,1761208523699,250.0,0.00036104,30]
[392146688,1761208524229,151.0,0.00036104,30]
[392146689,1761208524314,250.0,0.00036104,30]
[392146690,1761208524900,151.0,0.00036104,30]
[392146691,1761208524962,250.0,0.00036104,30]
[392146692,1761208525042,250.0,0.00036104,30]
[392146693,1761208525575,250.0,0.00036104,30]
[392146694,1761208525609,151.0,0.00036104,30]
[392146695,1761208525720,250.0,0.00036104,30]
[392146696,1761208525975,500.0,0.00036104,30]
[392146697,1761208526227,250.0,0.00036104,30]
[392146698,1761208526259,151.0,0.00036104,30]
[392146699,1761208526347,250.0,0.00036104,30]
[392146700,1761208526591,500.0,0.00036104,30]
[392146701,1761208526685,250.0,0.00036104,30]
[392146702,1761208526852,250.0,0.00036104,30]
[392146703,1761208526970,250.0,0.00036104,30]
[392146704,1761208527261,500.0,0.00036104,30]
[392146705,1761208527494,250.0,0.00036104,30]
[392146706,1761208527532,250.0,0.00036104,30]
[392146707,1761208527769,250.0,0.00036104,30]
[392146708,1761208527914,500.0,0.00036104,30]
[392146709,1761208528117,250.0,0.00036104,30]
[392146710,1761208528211,250.0,0.00036104,30]
[392146711,1761208528466,250.0,0.00036104,30]
[392146712,1761208528546,500.0,0.00036104,30]
[392146713,1761208528760,250.0,0.00036104,30]
[392146714,1761208528901,250.0,0.00036104,30]
[392146715,1761208529074,250.0,0.00036104,30]
[392146716,1761208529173,500.0,0.00036104,30]
[392146717,1761208529425,250.0,0.00036104,30]
[392146718,1761208529595,250.0,0.00036104,30]
[392146719,1761208529753,250.0,0.00036104,30]
[392146720,1761208529816,500.0,0.00036104,30]
[392146721,1761208530112,250.0,0.00036104,30]
[392146722,1761208530207,250.0,0.00036104,30]
[392146723,1761208530431,250.0,0.00036104,30]
[392146724,1761208530478,500.0,0.00036104,30]
[392146725,1761208530780,250.0,0.00036104,30]
[392146726,1761208530819,250.0,0.00036104,30]
[392146727,1761208531052,250.0,0.00036104,30]
[392146728,1761208531137,500.0,0.00036104,30]
[392146729,1761208531553,250.0,0.00036104,30]
[392146730,1761208531588,250.0,0.00036104,30]
[392146731,1761208531748,250.0,0.00036104,30]
[392146732,1761208531796,500.0,0.00036104,30]
[392146733,1761208532136,250.0,0.00036104,30]
[392146734,1761208532175,250.0,0.00036104,30]
[392146735,1761208532388,250.0,0.00036104,30]
[392146736,1761208532552,500.0,0.00036104,30]
[392146737,1761208532722,151.0,0.00036104,30]
[392146738,1761208532785,250.0,0.00036104,30]
[392146739,1761208533064,250.0,0.00036104,30]
[392146740,1761208533190,500.0,0.00036104,30]
[392146741,1761208533316,156.587,0.00036104,30]
[392146742,1761208533407,250.0,0.00036104,30]
[392146743,1761208533790,250.0,0.00036104,30]
[392146744,1761208533842,500.0,0.00036104,30]
[392146745,1761208533953,162.380719,0.00036104,30]
[392146746,1761208534045,250.0,0.00036104,30]
[392146747,1761208534531,500.0,0.00036104,30]
[392146748,1761208534605,168.3888056,0.00036104,30]
[392146749,1761208534683,250.0,0.00036104,30]
[392146750,1761208535184,500.0,0.00036104,30]
[392146751,1761208535324,174.61919141,0.00036104,30]
[392146752,1761208535356,250.0,0.00036104,30]
[392146753,1761208535815,500.0,0.00036104,30]
[392146754,1761208535977,250.0,0.00036104,30]
[392146755,1761208536014,174.61919141,0.00036104,30]
[392146756,1761208536479,500.0,0.00036104,30]
[392146757,1761208536961,250.0,0.00036104,30]
[392146758,1761208537162,500.0,0.00036104,30]
[392146759,1761208537628,250.0,0.00036104,30]
[392146760,1761208537880,500.0,0.00036104,30]
[392146761,1761208538544,500.0,0.00036104,30]
[392146762,1761208581909,200.0,0.00036104,120]
[392146764,1761208741664,1315.89,0.00023673,2]
[392146765,1761208806204,250.0,0.00036117,30]
[392146766,1761208807257,250.0,0.00036117,30]
[392146767,1761208807958,250.0,0.00036117,30]
[392146768,1761208808631,250.0,0.00036117,30]
[392146769,1761208808741,153.22257728,0.00036117,30]
[392146770,1761208808928,500.0,0.00036117,30]
[392146771,1761208809332,250.0,0.00036117,30]
[392146772,1761208809694,500.0,0.00036117,30]
[392146773,1761208810060,250.0,0.00036117,30]
[392146774,1761208810290,500.0,0.00036117,30]
[392146775,1761208810693,250.0,0.00036117,30]
[392146776,1761208810916,500.0,0.00036117,30]
[392146777,1761208811385,250.0,0.00036117,30]
[392146778,1761208812121,250.0,0.00036117,30]
[392146779,1761208812808,250.0,0.00036117,30]
[392146780,1761208813426,250.0,0.00036117,30]
[392146781,1761208814077,250.0,0.00036117,30]
[392146782,1761208814736,250.0,0.00036117,30]
[392146783,1761208815603,250.0,0.00036117,30]
[392146784,1761208816300,250.0,0.00036117,30]
[392146785,1761208816954,250.0,0.00036117,30]
[392146786,1761208817628,250.0,0.00036117,30]
[392146787,1761208818302,250.0,0.00036117,30]
[392146788,1761208818927,250.0,0.00036117,30]
[392146789,1761208819551,250.0,0.00036117,30]
[392146790,1761208831425,151.0,0.00036117,30]
[392146791,1761208832054,151.0,0.00036117,30]
[392146792,1761208832722,151.0,0.00036117,30]
[392146793,1761208833355,151.0,0.00036117,30]
[392146794,1761208833978,151.0,0.00036117,30]
[392146795,1761208881034,200.0,0.00036117,120]
[392146797,1761208965351,335.966346,0.00013699,2]
[392146798,1761208965565,335.966346,0.00020187,2]
[392146808,1761209106120,2006.95680989,0.00023672,2]
[392146809,1761209106662,158.25744497,0.00036124,30]
[392146810,1761209110409,250.0,0.00036124,30]
[392146811,1761209111031,250.0,0.00036124,30]
[392146812,1761209111748,250.0,0.00036124,30]
[392146813,1761209112371,250.0,0.00036124,30]
[392146814,1761209114239,5000.0,0.00023673,2]
[392146815,1761209121213,919.0,0.00036124,90]
[392146816,1761209122559,1440.95834715,0.00023673,2]
[392146820,1761209180290,200.0,0.00036124,120]
[392146822,1761209266512,196.970591,0.00030137,120]
[392146823,1761209277760,7242.23,0.00036126,30]
[392146824,1761209295425,200.0,0.00023673,2]
[392146878,1761209379617,9500.0,0.00036126,30]
[392146879,1761209424827,500.0,0.00036126,30]
[392146886,1761209432286,-300.0,0.00023999,2]
[392146887,1761209432295,-171.0,0.00023999,2]
[392146889,1761209432305,-300.0,0.00023999,2]
[392146891,1761209432316,-1200.0,0.00023999,2]
[392146893,1761209432327,-300.0,0.00023999,2]
[392146895,1761209432336,-354.90681184,0.00024,2]
[392146897,1761209432346,-7122.69118816,0.00024,2]
[392146900,1761209432365,-1145.15,0.00024,2]
[392147196,1761209438205,-500.0,0.00023999,2]
[392147197,1761209438215,-614.5636325,0.00023999,2]
[392147198,1761209438226,-500.0,0.00023999,2]
[392147199,1761209438237,-382.24296624,0.00023999,2]
[392147200,1761209438258,-117.75703376,0.00023999,2]
[392147201,1761209438268,-500.0,0.00023999,2]
[392147202,1761209438278,-500.0,0.00023999,2]
[392147203,1761209438288,-500.0,0.00023999,2]
[392147206,1761209438298,-500.0,0.00023999,2]
[392147208,1761209438307,-500.0,0.00023999,2]
[392147210,1761209438321,-80.97973375,0.00023999,2]
[392147212,1761209438335,-419.02026625,0.00023999,2]
[392147214,1761209438349,-500.0,0.00023999,2]
[392147216,1761209438360,-28.25049765,0.00023999,2]
[392147218,1761209438372,-283.84769415,0.00023999,2]
[392147411,1761209440554,-187.9018082,0.00023999,2]
[392147414,1761209440564,-500.0,0.00023999,2]
[392147415,1761209440574,-500.0,0.00023999,2]
[392147418,1761209440584,-500.0,0.00023999,2]
[392147420,1761209440593,-500.0,0.00023999,2]
[392147422,1761209440603,-500.0,0.00023999,2]
[392147423,1761209440613,-500.0,0.00023999,2]
[392147424,1761209440623,-500.0,0.00023999,2]
[392147425,1761209440632,-500.0,0.00023999,2]
[392147426,1761209440642,-500.0,0.00023999,2]
[392147427,1761209440651,-500.0,0.00023999,2]
[392147428,1761209440661,-500.0,0.00023999,2]
[392147429,1761209440671,-500.22848026,0.00023999,2]
[392147430,1761209440680,-500.0,0.00023999,2]
[392147431,1761209440689,-500.0,0.00023999,2]
[392147433,1761209440700,-500.0,0.00023999,2]
[392147435,1761209440710,-500.0,0.00023999,2]
[392147437,1761209440719,-331.47747966,0.00023999,2]
[392147438,1761209440729,-241.46322352,0.00023999,2]
[392147520,1761209477999,152.39,0.00023019,2]
[392147521,1761209481008,200.0,0.00036126,120]
[392147522,1761209509050,5000.0,0.0002327,2]
[392147523,1761209549574,192.62,0.00023209,2]
[392147524,1761209624659,182.82,0.00023373,2]
[392147525,1761209696387,172.36,0.00022307,2]
[392147526,1761209696807,229.82,0.00023276,2]
[392147527,1761209771049,167.44,0.00022372,2]
[392147528,1761209771481,223.25,0.00023345,2]
[392147529,1761209781855,200.0,0.00036128,120]
[392147530,1761209807377,364.67471431,0.00023171,2]
[392147531,1761209825438,264.10763989,0.00023657,2]
[392147532,1761209844872,175.33,0.00022238,2]
[392147533,1761209845289,233.77,0.00023205,2]
[392147534,1761209919865,159.71,0.0002223,2]
[392147535,1761209920298,212.94,0.00023197,2]
[392147536,1761209960881,160.0,0.000301,120]
[392147537,1761209961960,160.0,0.000301,120]
[392147539,1761209994651,193.97,0.0002312,2]
[392147540,1761210001653,4184.5928188,0.00023171,2]
[392147541,1761210004555,200.0,0.00023171,2]
[392147542,1761210015321,346.52140509,0.0002359,2]
[392147543,1761210034793,4016.22,0.00023672,2]
[392147544,1761210067970,184.09,0.00023172,2]
[392147545,1761210080780,200.0,0.00036131,120]
[392147546,1761210109684,294.55253122,0.00022594,2]
[392147547,1761210111207,530.19455619,0.00022594,2]
[392147548,1761210112888,942.56809989,0.00022594,2]
[392147549,1761210122381,1471.28989342,0.00022594,2]
[392147550,1761210141516,174.72,0.00023234,2]
[392147552,1761210215674,181.1,0.00023385,2]
[392147553,1761210235205,1658.75351419,0.00023672,2]
[392147554,1761210235231,8341.24648581,0.00023672,2]
[392147555,1761210241379,1658.76351419,0.00023672,2]
[392147556,1761210241408,8341.23648581,0.00023672,2]
[392147557,1761210247776,1658.77351419,0.00023672,2]
[392147558,1761210254546,10000.0,0.00023501,2]
[392147559,1761210262484,10000.0,0.00023501,2]
[392147560,1761210269864,10000.0,0.00023501,2]
[392147561,1761210275926,10000.0,0.00023501,2]
[392147562,1761210282273,10000.0,0.00023501,2]
[392147563,1761210288662,171.88,0.00023419,2]
[392147564,1761210289534,1000.0,0.00036132,30]
[392147565,1761210290386,1000.0,0.00036132,30]
[392147566,1761210290793,1000.0,0.00036132,30]
[392147567,1761210291337,1000.0,0.00036132,30]
[392147568,1761210291616,1000.0,0.00036132,30]
[392147569,1761210292116,1000.0,0.00036132,30]
[392147570,1761210292640,1000.0,0.00036132,30]
[392147571,1761210293053,1000.0,0.00036132,30]
[392147572,1761210293468,1000.0,0.00036132,30]
[392147573,1761210293896,1000.0,0.00036132,30]
[392147574,1761210294922,9000.0,0.00023501,2]
[392147575,1761210301931,1390.53,0.00036132,30]
[392147576,1761210317497,598.89849071,0.00023568,2]
[392147577,1761210319674,376.38039042,0.00023391,2]
[392147579,1761210361504,163.13,0.00023429,2]
[392147580,1761210363395,848.2569905,0.00022821,2]
[392147581,1761210370300,1452.33171269,0.00023576,2]
[392147582,1761210379970,200.0,0.00036132,120]
[392147583,1761210423749,226.89501088,0.00023568,2]
[392147584,1761210425742,906.93094699,0.00023568,2]
[392147585,1761210427575,970.1579624,0.00023568,2]
[392147586,1761210435474,154.83,0.00023388,2]
[392147719,1761210483301,173.7,0.00016503,2]
[392147757,1761210578125,-1200.0,0.00023671,2]
[392147758,1761210578154,-358.41078095,0.00023672,2]
[392147759,1761210580470,189.33,0.00023148,2]
[392147760,1761210588821,1404.05291653,0.00022905,2]
[392147761,1761210603589,1200.0,0.00023671,2]
[392147762,1761210608159,291.22487414,0.00022631,2]
[392147800,1761210632595,-425.41032178,0.00023672,2]
[392147886,1761210638447,-7915.81616403,0.00023672,2]
[392147888,1761210638457,-1200.0,0.00023679,2]
[392147889,1761210638467,-300.0,0.0002368,2]
[392147891,1761210638478,-276.58616224,0.00023681,2]
[392147893,1761210638488,-300.0,0.00023681,2]
[392147895,1761210638498,-300.0,0.00023681,2]
[392147897,1761210638507,-300.0,0.00023681,2]
[392147899,1761210638517,-300.0,0.00023681,2]
[392147902,1761210638526,-834.38373562,0.00023682,2]
[392147904,1761210638536,-20000.02,0.00023782,2]
[392147905,1761210638546,-500.0,0.00023782,2]
[392147906,1761210638557,-315.19487619,0.00023871,2]
[392147907,1761210638567,-567.35077715,0.00023871,2]
[392147908,1761210638578,-1008.62360382,0.00023871,2]
[392147909,1761210638588,-1575.97438097,0.00023871,2]
[392147910,1761210638599,-584.02084461,0.00023871,2]
[392147911,1761210638610,-1051.2375203,0.00023871,2]
[392147912,1761210638620,-1868.86670275,0.00023871,2]
[392147913,1761210638631,-2920.10422305,0.00023871,2]
[392147914,1761210638640,-4204.95008119,0.00023871,2]
[392147915,1761210638650,-4016.22,0.00023919,2]
[392147916,1761210638660,-500.0,0.00023973,2]
[392147917,1761210638671,-500.0,0.00023973,2]
[392147918,1761210638681,-500.0,0.00023973,2]
[392147919,1761210638692,-501.10601427,0.00023973,2]
[392147920,1761210638702,-500.0,0.00023973,2]
[392147921,1761210638712,-500.0,0.00023973,2]
[392147922,1761210638723,-500.0,0.00023973,2]
[392147923,1761210638733,-523.31329176,0.00023973,2]
[392147924,1761210638743,-500.0,0.00023973,2]
[392147925,1761210638753,-343.50349268,0.00023973,2]
[392147926,1761210638769,-500.0,0.00023973,2]
[392147927,1761210638779,-500.0,0.00023973,2]
[392147928,1761210638791,-500.0,0.00023973,2]
[392147929,1761210638802,-1296.76,0.0002398,10]
[392147930,1761210638812,-500.0,0.00023989,2]
[392147931,1761210638823,-500.0,0.00023989,2]
[392147932,1761210638834,-340.59870652,0.00023989,2]
[392147933,1761210638844,-500.0,0.00023989,2]
[392147934,1761210638854,-500.0,0.00023989,2]
[392147935,1761210638865,-500.0,0.00023989,2]
[392147936,1761210638875,-382.70594686,0.00023989,2]
[392147937,1761210638885,-500.0,0.00023989,2]
[392147938,1761210638895,-500.0,0.00023989,2]
[392147939,1761210638905,-500.0,0.00023989,2]
[392147940,1761210638916,-500.0,0.00023989,2]
[392147941,1761210638926,-500.0,0.00023989,2]
[392147942,1761210638936,-500.0,0.00023989,2]
[392147943,1761210638947,-282.60663603,0.00023989,2]
[392147944,1761210638960,-500.0,0.00023989,2]
[392147945,1761210638970,-500.0,0.00023989,2]
[392147946,1761210638980,-500.0,0.00023989,2]
[392147947,1761210638991,-500.0,0.00023989,2]
[392147948,1761210639000,-500.0,0.00023989,2]
[392147949,1761210639012,-500.0,0.00023989,2]
[392147950,1761210639023,-500.0,0.00023989,2]
[392147951,1761210639033,-500.0,0.00023989,2]
[392147952,1761210639043,-500.0,0.00023989,2]
[392147953,1761210639053,-500.0,0.00023989,2]
[392147954,1761210639063,-500.0,0.00023989,2]
[392147955,1761210639073,-500.0,0.00023989,2]
[392147956,1761210639084,-500.0,0.00023989,2]
[392147957,1761210639094,-500.0,0.00023989,2]
[392147958,1761210639103,-500.0,0.00023989,2]
[392147959,1761210639114,-500.0,0.00023989,2]
[392147960,1761210639124,-500.0,0.00023989,2]
[392147961,1761210639135,-500.0,0.00023989,2]
[392147962,1761210639145,-225.85291902,0.00023989,2]
[392147963,1761210639155,-500.0,0.00023989,2]
[392147964,1761210639165,-500.0,0.00023989,2]
[392147965,1761210639176,-500.0,0.00023989,2]
[392147966,1761210639186,-500.0,0.00023989,2]
[392147967,1761210639196,-500.0,0.00023989,2]
[392147968,1761210639206,-500.0,0.00023989,2]
[392147969,1761210639216,-500.0,0.00023989,2]
[392147970,1761210639226,-500.0,0.00023989,2]
[392147971,1761210639236,-500.0,0.00023989,2]
[392147972,1761210639248,-500.0,0.00023989,2]
[392147973,1761210639260,-500.0,0.00023989,2]
[392147974,1761210639270,-500.0,0.00023989,2]
[392147975,1761210639280,-500.0,0.00023989,2]
[392147976,1761210639291,-500.0,0.00023989,2]
[392147977,1761210639301,-500.0,0.00023989,2]
[392147978,1761210639312,-332.20057227,0.00023989,2]
[392147979,1761210639324,-500.0,0.00023989,2]
[392147980,1761210639337,-500.0,0.00023989,2]
[392147981,1761210639347,-500.0,0.00023989,2]
[392147982,1761210639357,-500.0,0.00023989,2]
[392147983,1761210639367,-100000.0,0.0002399,2]
[392147984,1761210639379,-1556.12,0.0002399,10]
[392147985,1761210639391,-500.0,0.00023995,2]
[392147986,1761210639402,-500.0,0.00023996,2]
[392147987,1761210639412,-500.0,0.00023998,2]
[392147988,1761210639422,-500.0,0.00023998,2]
[392147989,1761210639432,-500.0,0.00023999,2]
[392147990,1761210639442,-500.0,0.00023999,2]
[392147991,1761210639452,-500.0,0.00023999,2]
[392147992,1761210639461,-500.0,0.00023999,2]
[392147993,1761210639470,-500.0,0.00023999,2]
[392147994,1761210639480,-306.59563988,0.00023999,2]
[392147995,1761210639489,-156.57888611,0.00023999,2]
[392147996,1761210639498,-47643.15881184,0.00024,2]
[392147997,1761210639510,-10000.0,0.00024,2]
[392147998,1761210639520,-4506.47267655,0.00024,2]
[392147999,1761210639529,-236.66,0.00024112,2]
[392148000,1761210639539,-500.0,0.00024269,2]
[392148001,1761210639549,-245.3,0.00024359,2]
[392148002,1761210639558,-159.99,0.00024359,2]
[392148003,1761210639567,-160.0,0.00024452,2]
[392148004,1761210639577,-187.35,0.00024511,3]
[392148005,1761210639586,-562.07,0.00024511,3]
[392148006,1761210639595,-500.0,0.0002452,2]
[392148007,1761210639605,-500.0,0.0002452,2]
[392148008,1761210639614,-1017.8156044,0.00024521,2]
[392148009,1761210639623,-1000.0,0.00024521,2]
[392148010,1761210639633,-395.00234111,0.00024521,2]
[392148011,1761210639642,-404.46227763,0.00024521,2]
[392148012,1761210639651,-1014.13210947,0.00024521,2]
[392148013,1761210639660,-1000.0,0.00024521,2]
[392148014,1761210639669,-1000.0,0.00024521,2]
[392148015,1761210639678,-1000.0,0.00024521,2]
[392148016,1761210639688,-1000.0,0.00024521,2]
[392148017,1761210639698,-1000.0,0.00024521,2]
[392148018,1761210639707,-500.0,0.00024543,2]
[392148019,1761210639717,-1388.227755,0.00024575,2]
[392148020,1761210639727,-1493.5969651,0.00024579,2]
[392148021,1761210639737,-300.0,0.00024623,20]
[392148022,1761210639747,-300.0,0.00024623,20]
[392148023,1761210639756,-300.0,0.00024623,20]
[392148025,1761210639767,-300.0,0.00024623,20]
[392148027,1761210639776,-300.0,0.00024623,20]
[392148029,1761210639785,-300.0,0.00024623,20]
[392148031,1761210639794,-300.0,0.00024623,20]
[392148033,1761210639804,-300.0,0.00024623,20]
[392148035,1761210639813,-300.0,0.00024623,20]
[392148037,1761210639823,-300.0,0.00024623,20]
[392148039,1761210639833,-300.0,0.00024623,20]
[392148041,1761210639843,-300.0,0.00024623,20]
[392148044,1761210639852,-300.0,0.00024623,20]
[392148046,1761210639861,-300.0,0.00024623,20]
[392148048,1761210639870,-300.0,0.00024623,20]
[392148050,1761210639879,-600.0,0.00024623,20]
[392148052,1761210639889,-500.0,0.00024817,2]
[392148053,1761210639899,-560.9032153,0.00024865,2]
[392148054,1761210639908,-413.3436292,0.0002487,2]
[392148055,1761210639917,-500.0,0.00024872,2]
[392148056,1761210639926,-500.0,0.00024872,2]
[392148057,1761210639935,-500.0,0.00024873,2]
[392148058,1761210639945,-500.0,0.00024873,2]
[392148059,1761210639955,-500.0,0.00024873,2]
[392148060,1761210640039,-500.0,0.00024873,2]
[392148061,1761210640048,-500.0,0.00024873,2]
[392148063,1761210640057,-500.0,0.00024873,2]
[392148065,1761210640067,-500.0,0.00024873,2]
[392148067,1761210640076,-500.0,0.00024873,2]
[392148069,1761210640085,-500.0,0.00024873,2]
[392148072,1761210640094,-500.0,0.00024873,2]
[392148074,1761210640103,-500.0,0.00024873,2]
[392148076,1761210640113,-500.0,0.00024873,2]
[392148078,1761210640122,-500.0,0.00024873,2]
[392148080,1761210640131,-500.0,0.00024873,2]
[392148082,1761210640140,-500.0,0.00024873,2]
[392148084,1761210640149,-500.0,0.00024873,2]
[392148086,1761210640158,-500.0,0.00024873,2]
[392148088,1761210640168,-500.0,0.00024873,2]
[392148090,1761210640177,-500.0,0.00024873,2]
[392148092,1761210640186,-3679.60476346,0.0002488,2]
[392148093,1761210640195,-500.0,0.00024899,2]
[392148096,1761210640205,-500.0,0.00024899,2]
[392148098,1761210640215,-500.0,0.00024899,2]
[392148099,1761210640224,-500.0,0.00024899,2]
[392148101,1761210640233,-500.0,0.00024899,2]
[392148103,1761210640244,-500.0,0.00024899,2]
[392148105,1761210640258,-500.0,0.00024899,2]
[392148107,1761210640268,-500.0,0.00024899,2]
[392148110,1761210640278,-500.0,0.00024899,2]
[392148111,1761210640288,-500.0,0.00024899,2]
[392148113,1761210640297,-326072.873108,0.000249,2]
[392148115,1761210640307,-108690.957703,0.0002497,2]
[392148117,1761210640316,-500.0,0.00024973,2]
[392148119,1761210640324,-500.0,0.00024988,2]
[392148121,1761210640334,-500.0,0.00024989,2]
[392148123,1761210640343,-500.0,0.00024989,2]
[392148125,1761210640353,-500.0,0.00024989,2]
[392148127,1761210640363,-500.0,0.00024989,2]
[392148129,1761210640372,-500.0,0.00024989,2]
[392148131,1761210640381,-500.0,0.00024989,2]
[392148134,1761210640391,-191.38370688,0.00024989,2]
[392148137,1761210640400,-1500.0,0.00025068,2]
[392148140,1761210640410,-1500.0,0.00025068,2]
[392148143,1761210640420,-1500.0,0.00025068,2]
[392148146,1761210640429,-1358.31080678,0.00025068,2]
[392148149,1761210640439,-1500.0,0.00025068,2]
[392148151,1761210640448,-283.99,0.00025077,2]
[392148153,1761210640457,-500.0,0.00025213,2]
[392148155,1761210640467,-16638.5213057,0.00025214,2]
[392148157,1761210640476,-43890.9259885,0.00025214,2]
[392148159,1761210640485,-221.81118792,0.00025273,2]
[392148161,1761210640494,-500.0,0.0002542,2]
[392148163,1761210640504,-1000.0,0.00025421,2]
[392148164,1761210640514,-263.05843923,0.00025421,2]
[392148166,1761210640523,-1000.0,0.00025421,2]
[392148168,1761210640532,-500.82652438,0.00025421,2]
[392148170,1761210640541,-1000.0,0.00025421,2]
[392148172,1761210640550,-1134.68312128,0.00025421,2]
[392148174,1761210640559,-1000.0,0.00025421,2]
[392148176,1761210640570,-1000.0,0.00025421,2]
[392148178,1761210640580,-1000.0,0.00025421,2]
[392148180,1761210640589,-1000.0,0.00025421,2]
[392148182,1761210640598,-1000.0,0.00025421,2]
[392148184,1761210640608,-1000.0,0.00025421,2]
[392148186,1761210640617,-1000.0,0.00025421,2]
[392148188,1761210640627,-1000.0,0.00025421,2]
[392148190,1761210640636,-1000.0,0.00025421,2]
[392148192,1761210640645,-1000.0,0.00025421,2]
[392148194,1761210640654,-1000.0,0.00025421,2]
[392148196,1761210640664,-1000.0,0.00025421,2]
[392148198,1761210640674,-1000.0,0.00025421,2]
[392148200,1761210640684,-160.0,0.00025471,2]
[392148202,1761210640693,-390.11853006,0.00025521,2]
[392148204,1761210640703,-250.0,0.00025521,2]
[392148207,1761210640712,-1000.0,0.00025521,2]
[392148209,1761210640722,-3679.60476344,0.00025591,2]
[392148211,1761210640732,-500.0,0.00025592,2]
[392148214,1761210640741,-500.0,0.00025592,2]
[392148216,1761210640750,-500.0,0.00025592,2]
[392148217,1761210640761,-500.0,0.00025592,2]
[392148219,1761210640769,-598.32,0.00025592,2]
[392148221,1761210640779,-2000.0,0.00025616,2]
[392148223,1761210640788,-2000.0,0.00025616,2]
[392148225,1761210640797,-2000.0,0.00025616,2]
[392148227,1761210640806,-2000.0,0.00025616,2]
[392148229,1761210640815,-422.92472152,0.00025672,2]
[392148231,1761210640824,-1680.0,0.00025687,2]
[392148233,1761210640833,-287.0,0.00025688,2]
[392148235,1761210640842,-420.0,0.00025689,2]
[392148237,1761210640851,-420.0,0.00025689,2]
[392148239,1761210640860,-205.0,0.00025689,2]
[392148241,1761210640869,-420.0,0.00025689,2]
[392148242,1761210640878,-1680.0,0.00025797,2]
[392148244,1761210640887,-374.7,0.00025881,3]
[392148246,1761210640896,-1472.36268032,0.00025968,2]
[392148248,1761210640905,-1500.0,0.00025968,2]
[392148250,1761210640915,-456.6640712,0.00025968,2]
[392148253,1761210640925,-1502.01981445,0.00025968,2]
[392148255,1761210640935,-1467.37337688,0.00025968,2]
[392148257,1761210640944,-1500.0,0.00025968,2]
[392148259,1761210640954,-406.34751606,0.00025968,2]
[392148261,1761210640963,-1500.0,0.00025968,2]
[392148263,1761210640972,-500.0,0.00025968,2]
[392148265,1761210640981,-1516.63478182,0.00025968,2]
[392148266,1761210640991,-1500.0,0.00025968,2]
[392148268,1761210641000,-1003.29632497,0.00025968,2]
[392148270,1761210641009,-1500.0,0.00025968,2]
[392148272,1761210641019,-260.0,0.00026019,2]
[392148274,1761210641028,-331.32,0.00026041,2]
[392148276,1761210641037,-452.1668955,0.00026068,2]
[392148278,1761210641046,-374.42197656,0.00026068,2]
[392148280,1761210641056,-178.63746848,0.00026079,2]
[392148282,1761210641065,-2500.0,0.00026164,2]